Cogmind - Beta 13 @@@ ROGUE MODE // 2024.05.19 @ 22:27:05 Player: KingStarKing Result: Core destroyed Performance ------------- Evolutions (0) 0 Regions Visited (1) 200 Robots Destroyed (8) 40 Value Destroyed (257) 257 Prototype IDs (0) 0 Alien Tech Used (0) 0 Bonus (0) 0 TOTAL SCORE: 497 Bonus ------- None Cogmind --------- Core Integrity 0/250 Matter 166/300 Energy 156/160 System Corruption 0% Temperature Critical (607) Movement Walking (260) Ox2 Location -10/Materials Parts ------- > --- POWER (1) -------- Light Nuclear Core > --- PROPULSION (2) --- Aluminum Leg Aluminum Leg > --- UTILITY (2) ------ High-capacity Storage Unit Hardened Light Armor Plating > --- WEAPON (2) ------- Particle Gun Light Assault Rifle > --- INVENTORY (20) --- Light Ion Engine Light Treads Light Treads Aluminum Leg Heat Sink Improved Heat Sink Small Storage Unit Improved Targeting Computer Improved Targeting Computer Light Armor Plating Peak State ------------ > --- POWER ------------ Light Nuclear Core > --- PROPULSION ------- Aluminum Leg Aluminum Leg > --- UTILITY ---------- High-capacity Storage Unit Hardened Light Armor Plating > --- WEAPON ----------- Particle Gun Light Assault Rifle > --- INVENTORY -------- Light Ion Engine Light Treads Light Treads Aluminum Leg Heat Sink Improved Heat Sink Small Storage Unit Improved Targeting Computer Improved Targeting Computer Light Armor Plating [Rating: 12] Favorites ----------- Power Light Ion Engine Engine Light Ion Engine Power Core Light Nuclear Core Propulsion Aluminum Leg Treads Light Treads Leg Aluminum Leg Utility Hardened Light Armor Plating Device Improved Terrain Scanner Storage High-capacity Storage Unit Protection Hardened Light Armor Plating Weapon Light Assault Rifle Energy Gun Particle Gun Ballistic Gun Light Assault Rifle Build | -11 -10 ------- Run | Yrd Mat Slots Evolved . | . . Power . | . . Propulsion . | . . Utility . | . . Weapon . | . . Parts Attached 17 | 9 8 Power 2 | 1 1 Engine 1 | 1 . Core 1 | . 1 Reactor . | . . Propulsion 6 | 4 2 Treads 2 | 2 . Leg 4 | 2 2 Wheel . | . . Hover . | . . Flight . | . . Utility 5 | 2 3 Device 1 | 1 . Storage 2 | 1 1 Processor . | . . Hackware . | . . Protection 2 | . 2 Artifact . | . . Weapon 4 | 2 2 Energy Gun 1 | . 1 Energy Cannon . | . . Ballistic Gun 3 | 2 1 Ballistic Cannon . | . . Launcher . | . . Special Weapon . | . . Impact Weapon . | . . Slashing Weapon . | . . Piercing Weapon . | . . Special Melee Weapon . | . . Unidentified Prototypes . | . . Parts Lost 3 | . 3 Power 1 | . 1 Propulsion 1 | . 1 Utility . | . . Weapon 1 | . 1 Highest Loss Streak 3 | . 3 To Critical Strikes . | . . Average Slot Usage (%) 96 | . 96 Engine 8 | . 8 Core 4 | . 4 Leg 27 | . 27 Device 3 | . 3 Storage 14 | . 14 Protection 10 | . 10 Energy Gun 4 | . 4 Ballistic Gun 22 | . 22 Naked Turns . | . . Heaviest Build 54 | 11 54 Greatest Support 40 | 40 20 Greatest Overweight (x) 5 | 1 5 Average Overweight (x) . | . . Largest Inventory Capacity 20 | 8 20 Average Capacity 14 | 7 16 Most Carried 11 | 6 11 Average Carried 8 | 5 8 Final Capacity 20 | 8 20 Final Carried 10 | 6 10 Class Distribution -------------------- 74% | Mutant 25% | Scavenger-Mutant Dominant Class ---------------- Mutant | -10/Materials Resources | -11 -10 ----------- Run | Yrd Mat Matter Collected 408 | 230 178 Remotely . | . . Salvage Created 302 | 36 266 Parts 23 | 5 18 Haulers Intercepted . | . . Recyclers Shooed 1 | . 1 Parts Field Recycled . | . . Retrieved Matter . | . . Parts Self-Destructed . | . . Prevented . | . . Kills | -11 -10 ------- Run | Yrd Mat Combat Hostiles Destroyed 6 | . 6 Guns 6 | . 6 Classes Destroyed 2 | 1 1 Tunneler 2 | 2 . Grunt 6 | . 6 Best Kill Streak 2 | 1 2 Combat Bots Only 2 | . 2 Max Kills in Single Turn 1 | 1 1 Gunslinging . | . . Exploded . | . . Melee . | . . Uniques/NPCs Destroyed . | . . Combat | -11 -10 -------- Run | Yrd Mat Hostile Shots Fired 66 | . 66 Missed 10 | . 10 Damage Taken 769 | . 769 Core 250 | . 250 Absorbed by Shields . | . . Core Remaining (%) 100 | 100 . Volleys Fired 53 | 5 48 Largest 2 | 2 2 Hottest 85 | 40 85 Shots Fired 91 | 10 81 Gun 91 | 10 81 Cannon . | . . Launcher . | . . Special . | . . Kinetic 77 | 10 67 Thermal 14 | . 14 Explosive . | . . Electromagnetic . | . . Robot Hit Streak 16 | 3 16 Robot Miss Streak 7 | 1 7 Penetration Max . | . . Secondary Targets . | . . Shots Hit Robots 63 | 6 57 Core Hits 25 | 4 21 Critical Kills . | . . Critical Parts Destroyed . | . . Critical Strikes . | . . Melee Attacks . | . . Impact . | . . Slashing . | . . Piercing . | . . Sneak Attacks . | . . Combat Hostiles . | . . Follow-up Attacks . | . . Damage Inflicted 566 | 43 523 Guns 566 | 43 523 Cannons . | . . Explosions . | . . Melee . | . . Ramming . | . . Kinetic 445 | 43 402 Thermal 121 | . 121 Explosive . | . . Electromagnetic . | . . Impact . | . . Slashing . | . . Piercing . | . . Highest Corruption . | . . Average Corruption . | . . Corruption Purged . | . . Corruption Blocked . | . . Overload Shots . | . . Overflow Damage . | . . Projectiles . | . . Explosions . | . . Melee . | . . Knockbacks . | . . Impact . | . . Kinetic . | . . Secondary . | . . Self-Inflicted Damage . | . . Shots . | . . Rammed . | . . Targets Rammed . | . . Kicked . | . . Crushed . | . . Highest Temperature 668 | . 668 Average Temperature 199 | . 199 Received Heat Transfer 414 | . 414 Effects 12 | . 12 Shutdowns 3 | . 3 Energy Bleed 1 | . 1 Matter Decay 2 | . 2 Damage (minor) 1 | . 1 Damage (major) 3 | . 3 Damage (core) 2 | . 2 Siege Activations . | . . Robots Corrupted . | . . Combat Hostiles . | . . Parts Fried . | . . Impact Corruptions . | . . Robots Melted . | . . Combat Hostiles . | . . Parts Melted . | . . Heat Transferred 296 | . 296 Parts Sabotaged . | . . Parts Stolen . | . . Parts Stripped . | . . Power Chain Reactions . | . . Alert | -11 -10 ------- Run | Yrd Mat Peak Influence 111 | 10 111 Initial 6 | . 6 Average 44 | 4 55 Maximum Alert Level . | . . Low Security (%) 100 | 100 100 Level 1 . | . . Level 2 . | . . Level 3 . | . . Level 4 . | . . Level 5 . | . . High Security . | . . Max Security . | . . Squads Dispatched . | . . Investigation . | . . Extermination . | . . Reinforcement . | . . Assault . | . . Garrison . | . . Intercept . | . . Searches Triggered . | . . Construction Impeded . | . . Haulers Reinforced . | . . Active Scanning Responses . | . . Cargo Convoy Interrupts . | . . Stealth | -11 -10 --------- Run | Yrd Mat Distress Signals . | . . Communications Jammed . | . . Distress Signals . | . . Times Spotted 10 | . 10 Peak Tracking Total 3 | . 3 Tactical Retreats 1 | . 1 Traps | -11 -10 ------- Run | Yrd Mat Traps Triggered 2 | . 2 Indirectly . | . . Trap Hack Attempts . | . . Triggered . | . . Disarmed . | . . Reprogrammed . | . . Reused . | . . Traps Extracted . | . . Installed . | . . Triggered . | . . Machines | -11 -10 ---------- Run | Yrd Mat Machines Disabled . | . . Max in Single Turn . | . . Machines Repaired . | . . Machines Dismantled . | . . Machines Sabotaged . | . . Overloaded Fab Kills . | . . Hacking | -11 -10 --------- Run | Yrd Mat Machines Accessed 1 | . 1 Terminals 1 | . 1 Fabricators . | . . Repair Stations . | . . Recycling Units . | . . Scanalyzers . | . . Garrison Access . | . . Total Hacks 2 | . 2 Successful 2 | . 2 Failed . | . . Catastrophic . | . . Database Lockouts . | . . Manual . | . . Terminals 2 | . 2 Fabricators . | . . Repair Stations . | . . Recycling Units . | . . Scanalyzers . | . . Garrison Access . | . . Terminal Hacks 2 | . 2 Locate Traps 1 | . 1 Reinforcement Status 1 | . 1 Fabricator Hacks . | . . Repair Station Hacks . | . . Recycling Unit Hacks . | . . Scanalyzer . | . . Garrison Access Hacks . | . . Unauthorized Hacks . | . . Terminals . | . . Fabricators . | . . Repair Stations . | . . Recycling Units . | . . Scanalyzers . | . . Garrison Access . | . . Data Cores Recovered . | . . Used . | . . Hacking Detections 1 | . 1 Full Trace Events . | . . Feedback Events . | . . Feedback Blocked . | . . Robot Schematics Acquired . | . . Robots Built . | . . Authchips . | . . Time . | . . Total Robot Build Rating . | . . Part Schematics Acquired . | . . Parts Built . | . . Authchips . | . . Time . | . . Total Part Build Rating . | . . Parts Repaired . | . . Time . | . . Parts Recycled . | . . Recycled Matter . | . . Retrieved Matter . | . . Retrieved Components . | . . Parts Scanalyzed . | . . Part Schematics Acquired . | . . Parts Damaged . | . . Bothacking | -11 -10 ------------ Run | Yrd Mat Used RIF Installer . | . . Robots Hacked . | . . Non-combat . | . . Combat . | . . Robot Hacks Applied . | . . Relay Couplers Released . | . . Fabnet Peak Effective % . | . . Robots Rewired . | . . Allies Hacked . | . . Hacks Repelled . | . . Allies | -11 -10 -------- Run | Yrd Mat Total Allies . | . . Largest Group . | . . Highest-Rated Group . | . . Highest-Rated Ally . | . . Total Orders . | . . Ally Attacks . | . . Total Damage . | . . Kills . | . . Allies Corrupted . | . . Allies Melted . | . . Intel | -11 -10 ------- Run | Yrd Mat Robot Analysis Total . | . . Derelict Logs Recovered . | . . Drone Launches . | . . Drone Recoveries . | . . Exploration | -11 -10 ------------- Run | Yrd Mat Turns Passed 882 | 196 686 Spaces Moved 350 | 86 264 Core 4 | 4 . Treads 21 | 21 . Legs 325 | 61 264 Wheels . | . . Hover . | . . Flight . | . . Fastest Speed 50 | 50 120 Average Speed 172 | 127 187 Slowest Speed 470 | 160 470 Overloaded Moves . | . . Propulsion Burnouts . | . . Robots Hopped . | . . Cave-ins Triggered . | . . Exploration Rate (%) 27 | 5 50 Regions Visited 1 Branch Regions . Pre-discovered Areas . | . . Known Exits Taken . | . . Unknown Exits Taken 1 | 1 . Scrap Searched . | . . Spaces Dug . | . . Terrain Destroyed . | . . Melee . | . . Projectile . | . . AOE . | . . Terrain Rammed . | . . Walls Destroyed . | . . Machines Disabled . | . . Actions | -11 -10 --------- Run | Yrd Mat Total 546 | 159 387 Wait 109 | 54 55 Move 349 | 85 264 Hop . | . . Pick Up 13 | 6 7 Fast Attach 12 | 7 5 Attach 1 | . 1 Detach . | . . Swap 4 | 2 2 Drop 5 | . 5 Fire 53 | 5 48 Melee . | . . Ram . | . . Kick . | . . Crush . | . . Escape Stasis . | . . Rewire . | . . Trap . | . . Miscellaneous . | . . Route ------- -11/Scrapyard -10/Materials (discovered 1 exit: [*Mat]) History --------- Turn | Location | Event 7 | -11/Scrapyard | Discovered new exit (range 16) 197 | -11/Scrapyard | Entered Materials 319 | -10/Materials | Build established: Mutant 322 | -10/Materials | Discovered new exit (range 10) 648 | -10/Materials | Lost 3 parts (1p1n1w) 829 | -10/Materials | Core integrity fell below 50% 871 | -10/Materials | Core integrity fell below 20% 884 | -10/Materials | Core destroyed Last Messages --------------- 00673_ Acquired 10 matter. 00728_ K-01 Serf cleans the Fusion Modulator. 00729_ K-01 Serf cleans the Purification Channel. 00733_ K-01 Serf cleans the Fusion Modulator. 00793_ K-01 Serf cleans the Recycling Unit. 00809_ K-01 Serf cleans the Processing Tank. 00850_ G-47 Trooper destroyed. 00859_ Power failure, Lgt. Nuclear Core shutdown. 00867_ K-01 Serf collects debris. 00869_ Power failure, Lgt. Nuclear Core shutdown. 00871_ Overheating: Core damaged (-45). 00873_ Overheating: Matter decay (-66). 00877_ Power failure, Lgt. Nuclear Core shutdown. 00877_ Overheating: Matter decay (-44). 00878_ Overheating: Energy bleed (-32). 00882_ Overheating: Hcp. Storage Unit damaged (-206). 00882_ Overheating: Aluminum Leg damaged (-1). 00882_ Overheating: Particle Gun damaged (-26). 00883_ Overheating: Lgt. Assault Rifle damaged (-14). 00884_ Overheating: Core damaged (-27). Map ----- +----------------------------------------------------+ | ?????????????????????????????????????? | | ?????????????????????????????????????? | | ?????????????????????????????????????? | | ?????????????????????????????????????? | | ?????????????????????????????????????? | | ?????????????????????????????????????? | | ?????????????????????????????????????? | | ?????????????????????????????????????? | | ?????????????????????????????????????? | | ?????????????######??????????????????? | | ?????????????# ######+####+####??? | | ?????????????# ??? | | ????????????? T #???? | | ?????????????? **= #???? | | ???????????????? **= // #??|" | | ?????????????????# **= // # | | ?????????????????# | | ???????########### ?? | | ???????# # ????? | | ???????# # #????????? | | ???????# # #????????? | | ???????# + """ ########## | | ???????# k # """ | | ???????# # """ ####### | | ???????# # """ ####+######? | | ???????# *=@ # """ ## %#? | | ???????#####g##### ##"" """% ## | | ???????????#%#??## ##"Y """ # | | ???????????# #??# ##"" """ # | | ???????????# #??# # + | | ???????????# #??# + """ # | | ??????????? #??# # """ # | | ??????????? #??# # """ ## | | ??????????? #??# // # # | | ??????????? ???# /! ########## | | ??????????? ???# #????????# | | ??????????? ???# #????????# | | ??????????? ???#########+##????????# | | ??????????? ???????????????????????# | | ??????????? ???????????????????????# | | ??????????? ???????????????????????# | | ????????????????????????????????????## | | ?????????????????????????????????????? | | ?????????????????????????????????????? | | ?????????????????????????????????????? | | ?????????????????????????????????????? | | ?????????????????????????????????????? | | ?????????????????????????????????????? | | ?????????????????????????????????????? | | ?????????????????????????????????????? | +----------------------------------------------------+ Best States ------------- Heat Dissipation 25 Energy Generation 14 Energy Capacity 160 Matter Stores 300 Matter Capacity 300 Sight Range 16 Terrain Scan Range 16 Terrain Scan Density 10 Armor Coverage 150 Evasion (%) 55 Recoil Reduction 2 Item Schematics ----------------- None Robot Schematics ------------------ None Fabricated ------------ Nothing Alien Tech Used ----------------- None Achievements -------------- None Challenges ------------ None Game ------ Seed HellfireMediumChronowheel Manual? 0 Play Time 00:09:19 Cumulative 17.6 hours Start 2024.05.19 @ 22:18:19 End 2024.05.19 @ 22:27:05 Sessions 1 Manual Loads 0 Difficulty Rogue Special Mode None Game No. 17 Rogue 17 Adventurer 0 Explorer 0 Win Type - Total 0 Types 0/0/0/0/0/0/0/0/0 Lore% 15 Gallery% 18 Achievement% 16 Wizard Run 0 Options --------- Layout 0 ASCII 0 Keyboard 1 Movement Numpad Keybinds 0 Fullscreen 2 Font 18/Smallcaps Map View 38x25 Zoom Use 98% Tactical HUD 1 Map Filters NONE Filters NONE Steam 1 RUN: 373e775a-ce2e-4a6b-8f0a-907795ea106c